bitfinex-derivatives/quotes_SOLF0:USTF0_20230902
["timestamp","ask_amount","ask_price","bid_price","bid_amount"]
[1693682121268,112.84,19.337,19.335,0.31253]
[1693682129973,112.84,19.336,19.335,0.31253]
[1693682136175,112.84,19.338,19.335,0.31253]
[1693682136378,112.84,19.338,19.336,15.52]
[1693682141987,112.84,19.337,19.336,15.52]
[1693682147593,112.84,19.337,19.331,15.52]
[1693682150984,112.84,19.337,19.336,15.52]
[1693682154789,112.84,19.337,19.335,0.12501448]
[1693682160002,112.84,19.338,19.335,0.12501448]
[1693682162103,112.84,19.336,19.335,0.12501448]
[1693682162499,112.84,19.336,19.329,112.84]
[1693682166005,112.84,19.336,19.335,0.12501448]
[1693682172799,112.84,19.336,19.335,15.64501448]
[1693682173003,0.06249475,19.339,19.336,15.52]
[1693682173203,0.06249475,19.339,19.336,15.97454546]
[1693682177607,112.84,19.341,19.336,0.45454546]
[1693682177805,112.84,19.341,19.336,15.52]
[1693682178708,0.06249475,19.339,19.334,112.84]
[1693682179406,0.06249475,19.339,19.334,113.29454546]
[1693682179607,0.06249475,19.339,19.334,112.84]
[1693682181009,0.06249475,19.339,19.336,15.52]
[1693682192524,112.84,19.34,19.334,0.45454546]
[1693682193718,0.06249456,19.339,19.334,0.45454546]
[1693682195927,0.06249456,19.339,19.336,15.52]
[1693682215839,0.06249456,19.339,19.335,0.1250141]
[1693682221944,112.90249456,19.339,19.335,0.1250141]
[1693682222544,112.90249456,19.339,19.333,0.45454546]
[1693682222545,112.84,19.339,19.333,0.45454546]
[1693682223741,112.90249437,19.339,19.333,0.45454546]
[1693682225947,112.90249437,19.339,19.335,0.12501374]
[1693682236060,112.84,19.338,19.335,0.12501374]
[1693682247968,0.06249437,19.339,19.336,15.52]
[1693682252571,112.84,19.341,19.333,112.84]
[1693682253666,0.06249437,19.339,19.333,112.84]
[1693682254865,0.06249437,19.339,19.333,290.37540692]
[1693682255070,0.06249437,19.339,19.333,112.84]
[1693682255972,0.06249437,19.339,19.336,15.52]
[1693682264276,0.06249437,19.339,19.336,128.36]
[1693682267381,112.84,19.343,19.336,112.84]
[1693682268476,0.06249437,19.339,19.336,112.84]
[1693682270880,0.06249437,19.339,19.336,128.35]
[1693682271984,0.06249437,19.339,19.336,15.51]
[1693682275489,0.06249437,19.339,19.335,112.96501374]
[1693682281994,0.06249437,19.339,19.335,0.12501374]
[1693682282597,112.84,19.34,19.332,112.84]
[1693682283686,0.06249437,19.339,19.332,112.84]
[1693682286101,0.06249437,19.339,19.335,0.12501374]
[1693682297402,0.06249437,19.339,19.336,15.51]
[1693682308307,112.84,19.346,19.338,112.84]
[1693682309212,112.84,19.349,19.342,15.51]
[1693682310312,112.84,19.349,19.341,112.84]
[1693682312009,112.84,19.347,19.34,15.51]
[1693682316819,112.84,19.355,19.346,112.84]
[1693682317113,112.84,19.357,19.35,112.84]
[1693682318111,20.6728,19.363,19.351,112.84]
[1693682318112,112.84,19.358,19.351,112.84]
[1693682321914,112.84,19.358,19.343,20.7266]
[1693682321915,112.84,19.358,19.352,112.84]
[1693682322119,112.84,19.359,19.352,112.84]
[1693682323313,112.84,19.359,19.353,15.51]
[1693682323516,112.84,19.36,19.353,112.84]
[1693682324816,112.84,19.367,19.36,15.51]
[1693682325016,0.12473889,19.378,19.346,655.2]
[1693682325017,112.84,19.372,19.364,112.84]
[1693682325620,112.84,19.368,19.361,112.84]
[1693682328016,20.5367,19.377,19.368,15.51]
[1693682328220,20.5367,19.377,19.37,112.84]
[1693682328421,112.84,19.378,19.37,112.84]
[1693682328618,112.96473854,19.378,19.37,112.84]
[1693682332620,9.48525796,19.377,19.37,112.84]
[1693682334718,9.48525796,19.377,19.372,112.84]
[1693682334926,0.12473854,19.378,19.372,112.84]
[1693682335128,9.60970054,19.378,19.372,112.84]
[1693682335527,9.484962,19.377,19.372,112.84]
[1693682335829,9.484962,19.376,19.372,112.84]
[1693682336026,0.12473854,19.378,19.372,112.84]
[1693682337228,0.12473854,19.378,19.377,112.84]
[1693682337435,112.84,19.388,19.377,112.84]
[1693682337627,9.48201394,19.387,19.38,112.84]
[1693682338922,112.84,19.382,19.374,112.90670061]
[1693682339135,9.48201394,19.381,19.374,112.90670061]
[1693682341030,21.9158,19.386,19.374,112.90670061]
[1693682341031,21.9158,19.386,19.38,112.84]
[1693682341231,9.48188049,19.385,19.381,112.84]
[1693682341837,9.48188049,19.389,19.381,112.84]
[1693682342028,9.48188049,19.388,19.381,112.84]
[1693682342233,9.48188049,19.387,19.381,112.84]
[1693682342537,9.48188049,19.386,19.381,112.84]
[1693682342731,9.48188049,19.385,19.381,112.84]
[1693682342936,9.48188049,19.384,19.381,112.84]
[1693682343235,9.48188049,19.383,19.381,112.84]
[1693682343437,9.48188049,19.382,19.381,112.84]
[1693682343636,112.84,19.39,19.381,112.84]
[1693682343833,9.48193994,19.389,19.381,112.84]
[1693682344636,9.48193994,19.389,19.382,15.51]
[1693682344837,9.48193994,19.389,19.386,112.84]
[1693682345033,9.48193994,19.388,19.386,112.84]
[1693682345330,500.0,19.394,19.386,112.84]
[1693682345331,9.48193994,19.387,19.386,112.84]
[1693682345533,9.48193994,19.393,19.386,112.84]
[1693682345734,9.48193994,19.392,19.386,112.84]
[1693682345932,9.48193994,19.391,19.386,112.84]
[1693682346239,9.48193994,19.39,19.386,112.84]
[1693682346438,9.48193994,19.389,19.386,112.84]
[1693682346637,9.48193994,19.388,19.386,112.84]
[1693682346832,9.48193994,19.387,19.383,112.84]
[1693682347038,9.48193994,19.386,19.383,112.84]
[1693682347239,623.14,19.394,19.381,123.14]
[1693682347434,21.198,19.391,19.381,123.14]
[1693682347633,9.47878103,19.39,19.381,123.14]
[1693682348035,9.47878103,19.389,19.381,123.14]
[1693682348334,9.47878103,19.388,19.381,123.14]
[1693682348530,9.47878103,19.387,19.381,123.14]
[1693682348736,9.47878103,19.386,19.381,123.14]
[1693682349046,9.47878103,19.385,19.381,123.14]
[1693682349233,623.14,19.394,19.381,123.14]
[1693682349437,9.4788729,19.393,19.381,123.14]
[1693682355140,123.14,19.391,19.379,123.14]
[1693682355336,9.4788729,19.39,19.379,123.14]
[1693682355742,9.4788729,19.39,19.379,138.62]
[1693682356247,9.4788729,19.39,19.379,123.14]
[1693682358646,0.06235826,19.381,19.379,123.14]
[1693682372063,0.06235826,19.381,19.377,0.12474145]
[1693682372258,0.06235826,19.381,19.379,110.89]
[1693682372661,9.4788729,19.385,19.379,110.89]
[1693682373663,0.06235826,19.381,19.379,110.89]
[1693682381266,0.06235826,19.381,19.377,0.12474145]
[1693682381464,266.09,19.38,19.374,0.06670061]
[1693682382068,110.89,19.378,19.374,0.06670061]
[1693682386072,110.89,19.375,19.374,0.06670061]
[1693682386766,110.89,19.375,19.367,131.1247]
[1693682387170,110.89,19.375,19.367,110.89]
[1693682390174,0.06237112,19.377,19.365,110.89]
[1693682390175,110.89,19.373,19.365,110.89]
[1693682390873,110.89,19.373,19.365,111.34454546]
[1693682391066,110.89,19.373,19.369,0.18718821]
[1693682392177,110.89,19.372,19.369,0.18718821]
[1693682401977,110.89,19.374,19.369,0.18718821]
[1693682402576,110.89,19.374,19.366,110.89]
[1693682403777,0.062384,19.373,19.366,110.89]
[1693682403972,110.89,19.372,19.365,126.37]
[1693682404177,110.89,19.372,19.365,111.34454546]
[1693682404478,110.89,19.372,19.365,110.89]
[1693682405079,110.89,19.372,19.365,126.37]
[1693682405279,110.89,19.372,19.365,111.34454546]
[1693682405481,110.89,19.372,19.365,110.89]
[1693682405979,110.89,19.372,19.369,0.12479294]
[1693682422097,110.89,19.37,19.369,0.12479294]
[1693682432898,110.89,19.37,19.36,110.89]
[1693682433100,110.89,19.368,19.36,110.89]
[1693682435804,110.89,19.365,19.358,130.9854]
[1693682436104,110.89,19.365,19.358,110.89]
[1693682436305,110.89,19.365,19.361,0.24968577]
[1693682442009,110.89,19.364,19.361,0.24968577]
[1693682446910,176.550684,19.373,19.361,0.24968577]
[1693682446911,110.89,19.362,19.361,0.24968577]
[1693682447614,110.89,19.362,19.353,110.89]
[1693682447912,110.89,19.36,19.353,111.34454546]
[1693682448109,110.89,19.36,19.353,110.89]
[1693682448304,110.89,19.36,19.353,111.34454546]
[1693682448509,110.89,19.36,19.353,110.89]
[1693682448716,110.89,19.36,19.353,111.34454546]
[1693682448912,110.89,19.358,19.352,15.49]
[1693682449116,110.89,19.358,19.353,0.45454546]
[1693682449316,110.89,19.358,19.352,15.49]
[1693682449517,110.89,19.358,19.353,0.45454546]
[1693682449716,110.89,19.358,19.352,15.49]
[1693682450015,110.89,19.361,19.353,111.34454546]
[1693682450216,110.89,19.361,19.353,110.89]
[1693682450607,110.89,19.361,19.353,111.34454546]
[1693682450811,110.89,19.361,19.353,110.89]
[1693682451008,110.89,19.361,19.357,0.31216969]
[1693682452020,110.89,19.362,19.357,0.31216969]
[1693682459426,110.89,19.359,19.357,0.31216969]
[1693682463023,110.89,19.359,19.352,111.34454546]
[1693682463223,110.89,19.359,19.352,110.89]
[1693682463423,110.89,19.359,19.352,126.38]
[1693682463625,110.89,19.359,19.352,110.89]
[1693682463818,110.89,19.359,19.352,126.38]
[1693682464018,110.89,19.359,19.352,111.34454546]
[1693682464328,110.89,19.359,19.352,110.89]
[1693682464636,110.89,19.359,19.352,126.38]
[1693682464824,110.89,19.359,19.352,110.89]
[1693682465128,110.89,19.359,19.352,126.38]
[1693682465322,110.89,19.359,19.352,111.34454546]
[1693682465517,110.89,19.359,19.352,110.89]
[1693682465722,110.89,19.359,19.352,126.38]
[1693682465923,110.89,19.359,19.352,110.89]
[1693682466122,110.89,19.359,19.352,126.38]
[1693682466323,110.89,19.359,19.357,0.31216969]
[1693682482037,110.89,19.358,19.357,0.31216969]
[1693682491942,110.89,19.36,19.357,0.31216969]
[1693682507362,110.89,19.36,19.352,110.89]
[1693682509562,110.89,19.359,19.352,110.89]
[1693682510767,110.89,19.359,19.357,0.31216969]
[1693682537482,110.89,19.359,19.352,110.89]
[1693682540991,110.89,19.359,19.357,0.31216969]
[1693682541990,110.89,19.358,19.357,0.31216969]
[1693682565213,83.5462,19.358,19.357,0.31216969]
[1693682565516,110.89,19.363,19.357,0.31216969]
[1693682568313,110.89,19.366,19.36,15.5]
[1693682572119,110.89,19.369,19.362,110.89]
[1693682574115,110.89,19.366,19.36,15.5]
[1693682582032,110.89,19.364,19.357,111.20216969]
[1693682582430,110.89,19.364,19.357,110.89]
[1693682583434,0.06243234,19.358,19.357,110.89]
[1693682587732,0.06243234,19.358,19.355,15.5]
[1693682590937,0.06243234,19.358,19.353,110.89]
[1693682601350,110.95243234,19.358,19.35,110.89]
[1693682601547,110.89,19.355,19.347,111.34454546]
[1693682604554,0.06243234,19.358,19.336,271.43791075]
[1693682604555,0.06243234,19.358,19.336,755.94791075]
[1693682604754,110.89,19.347,19.338,15.49]
[1693682604953,110.89,19.347,19.338,193.43950108]
[1693682605748,110.89,19.347,19.338,15.49]
[1693682612055,110.89,19.346,19.338,126.38]
[1693682616656,110.89,19.346,19.338,110.89]
[1693682616855,110.89,19.34,19.332,110.89]
[1693682617058,110.89,19.337,19.331,15.51]
[1693682623867,20.5635,19.353,19.327,15.51]
[1693682623868,110.89,19.332,19.327,15.51]
[1693682624064,110.89,19.331,19.327,15.51]
[1693682631173,110.89,19.331,19.324,15.51]
[1693682632069,110.89,19.328,19.321,110.89]
[1693682633177,110.89,19.332,19.325,110.89]
[1693682633377,110.89,19.334,19.328,110.89]
[1693682633583,110.89,19.337,19.331,15.51]
[1693682634775,0.45454546,19.347,19.333,110.89]
[1693682634776,110.89,19.34,19.333,110.89]
[1693682635982,110.89,19.336,19.329,110.89]
[1693682637179,110.89,19.339,19.332,110.89]
[1693682638083,110.89,19.335,19.327,147.326]
[1693682638784,110.89,19.339,19.331,110.89]
[1693682641286,110.89,19.335,19.328,110.89]
[1693682641980,110.89,19.334,19.327,147.326]
[1693682643784,110.89,19.338,19.331,110.89]
[1693682647285,123.8,19.34,19.328,123.8]
[1693682652090,123.8,19.338,19.327,36.9375]
[1693682660798,123.8,19.341,19.331,15.51]
[1693682661397,123.8,19.344,19.333,123.8]
[1693682663502,123.8,19.341,19.331,15.51]
[1693682665502,123.8,19.339,19.327,160.7375]
[1693682667199,0.45454546,19.345,19.327,36.9375]
[1693682667404,111.42,19.336,19.329,111.42]
[1693682669712,111.42,19.34,19.333,111.42]
[1693682672307,123.75,19.343,19.331,123.75]
[1693682672699,0.45454546,19.35,19.328,178.60744654]
[1693682672700,123.75,19.339,19.328,178.60744654]
[1693682672904,123.75,19.339,19.327,36.9375]
[1693682673099,123.75,19.339,19.327,215.5511327]
[1693682673802,123.75,19.342,19.328,4.60910607]
[1693682674106,123.75,19.342,19.331,15.51]
[1693682675204,123.75,19.338,19.328,178.6136327]
[1693682675404,123.75,19.338,19.327,36.9375]
[1693682675610,123.75,19.338,19.327,215.55246144]
[1693682676108,123.75,19.342,19.327,215.55246144]
[1693682677206,123.75,19.342,19.328,4.6093149]
[1693682679611,123.75,19.342,19.327,215.55246144]
[1693682679810,123.75,19.339,19.328,4.61073826]
[1693682680011,123.75,19.342,19.328,4.61073826]
[1693682681912,123.75,19.341,19.328,4.61073826]
[1693682682510,123.75,19.338,19.328,4.61073826]
[1693682682816,123.75,19.338,19.327,215.55246144]
[1693682683115,123.75,19.338,19.328,4.61069107]
[1693682683316,123.75,19.338,19.327,215.55246144]
[1693682683507,123.75,19.338,19.328,4.61066487]
[1693682684308,123.75,19.343,19.328,4.61066487]
[1693682684515,123.75,19.343,19.329,25.86786]
[1693682686617,123.75,19.343,19.329,204.48282144]
[1693682686916,124.20454546,19.345,19.333,123.75]
[1693682687116,0.45454546,19.344,19.333,123.75]
[1693682687615,0.45454546,19.344,19.336,15.51]
[1693682687815,0.45454546,19.346,19.336,15.51]
[1693682695822,123.75,19.344,19.333,123.75]
[1693682712330,111.35,19.343,19.336,111.35]
[1693682717745,111.35,19.344,19.337,111.35]
[1693682733754,111.35,19.345,19.338,111.35]
[1693682733955,111.35,19.342,19.335,111.35]
[1693682735957,111.35,19.342,19.336,15.51]
[1693682736159,111.35,19.344,19.336,111.35]
[1693682738250,111.41246783,19.347,19.34,15.51]
[1693682740258,301.26555061,19.396,19.334,178.49580751]
[1693682740259,111.35,19.352,19.345,111.35]
[1693682742059,111.35,19.35,19.343,111.35]
[1693682743158,23.93206704,19.353,19.337,111.35]
[1693682743159,111.35,19.345,19.337,111.35]
[1693682743963,111.35,19.345,19.338,15.51]
[1693682745861,111.35,19.345,19.337,111.35]
[1693682746057,111.35,19.342,19.335,111.35]
[1693682747363,111.35,19.345,19.338,111.35]
[1693682749562,111.35,19.343,19.335,111.35]
[1693682749971,111.35,19.345,19.338,111.35]
[1693682750963,0.06246765,19.347,19.34,111.35]
[1693682751368,111.35,19.345,19.337,111.35]
[1693682752367,0.06246765,19.347,19.335,111.35]
[1693682752368,111.35,19.342,19.335,111.35]
[1693682753663,111.35,19.346,19.338,111.35]
[1693682753864,21.14794546,19.359,19.345,15.51]
[1693682754068,21.14794546,19.359,19.347,111.35]
[1693682754069,111.35,19.355,19.347,111.35]
[1693682757065,111.35,19.357,19.35,111.35]
[1693682757262,494.2,19.368,19.345,500.0]
[1693682757461,21.7555,19.361,19.35,123.55]
[1693682757868,123.55,19.362,19.35,123.55]
[1693682759665,123.55,19.365,19.352,123.55]
[1693682760470,145.3055,19.367,19.356,123.55]
[1693682764568,21.7555,19.367,19.356,123.55]
[1693682764874,123.55,19.368,19.356,123.55]
[1693682765375,123.55,19.371,19.36,123.55]
[1693682765576,21.8162,19.373,19.355,500.0]
[1693682765577,21.8162,19.373,19.363,123.55]
[1693682766074,123.55,19.376,19.363,123.55]
[1693682769372,123.55,19.376,19.36,123.55]
[1693682769577,123.55,19.372,19.36,123.55]
[1693682769978,123.55,19.369,19.357,123.55]
[1693682771177,0.45454546,19.368,19.357,123.55]
[1693682771383,123.55,19.366,19.354,123.55]
[1693682773382,123.55,19.366,19.355,15.49]
[1693682774083,123.55,19.366,19.354,123.55]
[1693682774486,123.55,19.368,19.356,123.55]
[1693682776786,124.00454546,19.368,19.356,123.55]
[1693682776979,123.55,19.368,19.356,123.55]
[1693682778085,124.00454546,19.368,19.356,123.55]
[1693682778385,123.55,19.368,19.356,123.55]
[1693682780585,124.00454546,19.368,19.356,123.55]
[1693682780786,123.55,19.368,19.356,123.55]
[1693682785897,9.49213787,19.367,19.356,123.55]
[1693682789601,123.55,19.364,19.351,20.9294]
[1693682792000,123.55,19.364,19.352,123.55]
[1693682794301,123.55,19.364,19.352,139.04]
[1693682795707,123.55,19.363,19.352,15.49]
[1693682796108,123.55,19.363,19.35,123.55]
[1693682802009,123.55,19.363,19.352,123.55]
[1693682802205,21.5469,19.366,19.345,500.0]
[1693682802410,111.16,19.361,19.354,111.16]
[1693682808119,111.16,19.36,19.353,111.16]
[1693682811616,111.16,19.359,19.351,111.16]
[1693682812016,111.16,19.357,19.35,111.16]
[1693682813018,21.5469,19.366,19.345,500.0]
[1693682813019,111.16,19.352,19.345,15.5]
[1693682813925,111.16,19.352,19.344,111.16]
[1693682815020,21.5469,19.366,19.331,111.16]
[1693682815021,111.16,19.345,19.331,111.16]
[1693682815218,111.16,19.339,19.331,111.16]
[1693682817316,123.79,19.341,19.328,123.79]
[1693682818711,22.1967,19.35,19.322,20.5117]
[1693682818712,123.79,19.335,19.324,15.5]
[1693682820415,123.79,19.338,19.327,15.5]
[1693682820717,123.79,19.341,19.329,123.79]
[1693682822225,123.79,19.343,19.331,123.79]
[1693682824527,123.79,19.346,19.334,123.79]
[1693682824927,123.79,19.343,19.331,123.79]
[1693682825125,123.79,19.34,19.328,123.79]
[1693682827027,123.79,19.337,19.325,123.79]
[1693682827229,123.79,19.334,19.322,123.79]
[1693682831928,124.24454546,19.337,19.325,123.79]
[1693682834027,0.45454546,19.337,19.328,123.79]
[1693682834233,123.79,19.34,19.328,123.79]
[1693682834531,123.79,19.34,19.329,21.1303]
[1693682834933,123.79,19.34,19.328,123.79]
[1693682846045,123.79,19.337,19.325,144.3897]
[1693682846237,123.79,19.337,19.325,123.79]
[1693682849248,123.79,19.334,19.322,123.79]
[1693682852045,123.79,19.332,19.321,139.31]
[1693682854645,123.79,19.336,19.324,123.79]
[1693682854852,0.45454546,19.335,19.324,123.79]
[1693682856152,123.79,19.333,19.321,139.31]
[1693682856952,123.79,19.335,19.324,123.79]
[1693682861555,0.45454546,19.342,19.321,15.52]
[1693682861556,123.79,19.332,19.321,15.52]
[1693682863359,123.79,19.332,19.32,123.79]
[1693682866562,123.79,19.329,19.317,123.79]
[1693682870456,21.6084,19.331,19.321,15.52]
[1693682874562,123.79,19.332,19.321,15.52]
[1693682874963,22.1195,19.341,19.324,15.52]
[1693682874964,123.79,19.334,19.324,15.52]
[1693682882471,123.79,19.334,19.319,157.3498441]
[1693682882472,111.48,19.331,19.325,111.48]
[1693682885072,111.48,19.329,19.321,111.48]
[1693682885275,111.48,19.326,19.319,111.48]
[1693682887881,111.48,19.333,19.325,111.48]
[1693682889575,111.48,19.33,19.323,111.48]
[1693682890974,0.45454546,19.341,19.319,111.48]
[1693682890975,111.48,19.327,19.319,111.48]
[1693682892083,111.48,19.327,19.32,111.48]
[1693682892280,124.0,19.321,19.308,124.0]
[1693682892682,124.0,19.321,19.308,139.52]
[1693682892874,124.0,19.318,19.308,15.52]
[1693682893179,124.0,19.315,19.303,15.52]
[1693682893375,124.0,19.312,19.3,139.52]
[1693682893579,124.0,19.312,19.301,4.63276165]
[1693682894884,124.45454546,19.315,19.303,15.52]
[1693682897487,124.0,19.323,19.311,124.0]
[1693682898187,124.0,19.32,19.308,15.52]
[1693682898385,124.0,19.317,19.305,15.52]
[1693682898581,124.0,19.314,19.301,124.0]
[1693682906692,124.0,19.311,19.298,144.5826]
[1693682911796,0.45454546,19.317,19.29,15.52]
[1693682911797,500.0,19.314,19.29,15.52]
[1693682911997,124.0,19.306,19.294,15.52]
[1693682912200,0.45454546,19.305,19.294,15.52]
[1693682912400,21.30534546,19.305,19.294,15.52]
[1693682912596,0.45454546,19.305,19.294,15.52]
[1693682920711,0.45454546,19.305,19.295,21.7392]
[1693682928313,124.0,19.306,19.295,21.7392]
[1693682928812,124.0,19.306,19.294,15.52]
[1693682932217,0.45454546,19.309,19.29,15.54]
[1693682932419,111.8,19.303,19.295,111.8]
[1693682939517,21.9683,19.313,19.301,111.8]
[1693682939518,111.8,19.309,19.301,111.8]
[1693682941922,111.8,19.308,19.3,111.8]
[1693682943323,111.8,19.31,19.303,15.54]
[1693682946927,111.8,19.307,19.3,111.8]
[1693682953026,111.8,19.301,19.294,15.54]
[1693682953228,111.8,19.301,19.289,28.23173469]
[1693682953229,111.8,19.298,19.29,149.27]
[1693682953435,111.8,19.298,19.292,15.54]
[1693682953724,111.8,19.298,19.29,149.27]
[1693682953932,111.8,19.298,19.292,15.54]
[1693682954120,111.8,19.298,19.29,127.34]
[1693682954324,111.8,19.298,19.292,15.54]
[1693682954526,111.8,19.298,19.29,127.34]
[1693682954732,111.8,19.298,19.292,15.54]
[1693682954928,111.8,19.298,19.29,127.34]
[1693682955128,111.8,19.298,19.292,15.54]
[1693682955334,111.8,19.301,19.292,111.8]
[1693682966530,111.8,19.304,19.296,111.8]
[1693682972142,111.8,19.303,19.296,111.8]
[1693682978838,111.8,19.3,19.294,15.54]
[1693682981944,111.8,19.3,19.292,173.70767771]
[1693682985352,111.8,19.301,19.292,285.50767771]
[1693682985950,111.8,19.301,19.292,127.34]
[1693683002176,111.8,19.299,19.292,15.54]
[1693683006868,111.8,19.299,19.291,111.8]
[1693683022086,111.8,19.298,19.29,111.8]
[1693683045296,111.8,19.302,19.294,111.8]
[1693683045692,111.8,19.301,19.294,15.55]
[1693683052095,111.8,19.302,19.295,111.8]
[1693683053998,111.8,19.308,19.3,111.8]
[1693683062100,111.8,19.307,19.3,15.55]
[1693683063400,133.2646,19.309,19.301,111.8]
[1693683064299,111.8,19.309,19.301,111.8]
[1693683066399,111.8,19.317,19.308,111.8]
[1693683072105,111.8,19.317,19.31,111.8]
[1693683075912,111.8,19.319,19.312,111.8]
[1693683081813,22.1948,19.322,19.313,111.8]
[1693683081814,111.8,19.32,19.313,111.8]
[1693683084810,111.8,19.315,19.307,111.8]
[1693683085116,0.45454546,19.314,19.307,111.8]
[1693683091320,111.8,19.315,19.307,111.8]
[1693683092021,111.8,19.316,19.307,111.8]
[1693683092321,0.45454546,19.315,19.307,111.8]
[1693683098524,0.45454546,19.315,19.308,15.54]
[1693683100723,111.8,19.32,19.314,15.54]
[1693683101930,0.45454546,19.331,19.306,28.35538018]
[1693683101931,111.8,19.323,19.315,111.8]
[1693683109633,111.8,19.32,19.312,111.8]
[1693683111935,111.8,19.319,19.312,111.8]
[1693683112133,0.45454546,19.318,19.312,111.8]
[1693683122041,111.8,19.316,19.308,111.8]
[1693683129449,24.59014641,19.318,19.314,111.8]
[1693683131755,111.8,19.322,19.314,111.8]
[1693683131957,111.8,19.323,19.315,111.8]
[1693683142066,111.8,19.325,19.318,111.8]
[1693683146269,111.8,19.325,19.319,15.53]
[1693683152171,111.8,19.325,19.319,111.8]
[1693683153772,111.8,19.326,19.319,111.8]
[1693683157272,111.8,19.328,19.321,111.8]
[1693683163786,136.8364095,19.329,19.321,111.8]
[1693683176195,132.1938,19.335,19.328,111.8]
[1693683182003,111.8,19.334,19.326,111.8]
[1693683203833,111.8,19.334,19.327,15.52]
[1693683207027,21.7419,19.341,19.331,15.52]
[1693683207028,111.8,19.337,19.331,15.52]
[1693683207630,111.8,19.337,19.33,111.8]
[1693683207830,21.7419,19.341,19.328,111.8]
[1693683207831,111.8,19.335,19.328,111.8]
[1693683211340,111.8,19.334,19.326,111.8]
[1693683211940,111.8,19.334,19.327,111.8]
[1693683213640,111.8,19.332,19.324,111.8]
[1693683213938,133.03374959,19.332,19.324,111.8]
[1693683225745,21.23374959,19.332,19.327,111.8]
[1693683225946,21.7419,19.341,19.327,111.8]
[1693683226150,111.8,19.335,19.327,111.8]
[1693683226345,111.8,19.335,19.314,15.52]
[1693683226543,111.8,19.334,19.327,111.8]
[1693683241465,111.8,19.333,19.327,15.52]
[1693683259675,111.8,19.336,19.329,111.8]
[1693683263473,111.8,19.334,19.327,15.52]
[1693683268575,111.8,19.334,19.326,111.8]
[1693683271680,111.8,19.335,19.328,111.8]
[1693683271978,111.8,19.333,19.325,111.8]
[1693683281984,111.8,19.334,19.327,111.8]
[1693683285683,0.45454546,19.34,19.324,15.52]
[1693683285888,21.4882,19.348,19.34,15.52]
[1693683289690,133.2882,19.348,19.34,15.52]
[1693683291991,133.2882,19.348,19.34,111.8]
[1693683302100,111.8,19.346,19.339,111.8]
[1693683312010,111.8,19.346,19.338,111.8]
[1693683327525,111.8,19.347,19.34,111.8]